fUSD/lending_fUSD_20240327
["ID","MTS","AMOUNT","RATE_DAILY","PERIOD"]
[320735587,1711539142038,-1400.16,0.00059452,120]
[320735588,1711539142049,-6749.09,0.00059452,120]
[320735589,1711539142059,-1020.49,0.00059452,120]
[320735590,1711539142069,-3525.02,0.00059452,120]
[320735591,1711539142080,-9670.8,0.00059452,120]
[320735592,1711539142091,-2244.9,0.00059452,120]
[320735593,1711539142100,-4278.93,0.00059452,120]
[320735594,1711539142110,-500.0,0.00059452,120]
[320735595,1711539142119,-5002.55,0.00059452,120]
[320735596,1711539142130,-1319.68,0.00059452,120]
[320735597,1711539142140,-5599.22,0.00059452,120]
[320735598,1711539142150,-4145.52,0.00059452,120]
[320735599,1711539142160,-1033.96,0.00059452,120]
[320735600,1711539142170,-8690.1,0.00059452,120]
[320735601,1711539142180,-759.99,0.00059452,120]
[320735602,1711539142191,-938.28,0.00059452,120]
[320735603,1711539142201,-3689.75,0.00059452,120]
[320735604,1711539142211,-3289.32,0.00059452,120]
[320735605,1711539142220,-8474.88,0.00059452,120]
[320735606,1711539142231,-773.1,0.00059452,120]
[320735607,1711539142240,-670.41,0.00059452,120]
[320735608,1711539142251,-684.84,0.00059452,120]
[320735609,1711539142263,-991.15,0.00059452,120]
[320735610,1711539142276,-16950.66,0.00059452,120]
[320735611,1711539142286,-5480.38,0.00059452,120]
[320735612,1711539142296,-3421.26,0.00059452,120]
[320735613,1711539142306,-649.49,0.00059452,120]
[320735614,1711539142316,-1159.66,0.00059452,120]
[320735615,1711539142326,-2172.19,0.00059452,120]
[320735616,1711539142336,-2895.84,0.00059452,120]
[320735617,1711539142346,-20784.38,0.00059452,120]
[320735618,1711539142355,-2732.75,0.00059452,120]
[320735619,1711539142365,-17160.48,0.00059452,120]
[320735620,1711539142374,-4740.83,0.00059452,120]
[320735621,1711539142383,-886.33,0.00059452,120]
[320735622,1711539142393,-672.63,0.00059452,120]
[320735623,1711539142403,-6247.3,0.00059452,120]
[320735624,1711539142412,-5091.09,0.00059452,21]
[320735625,1711539142422,-254.84050451,0.00059452,120]
[320735626,1711539142432,-584.47,0.00059452,120]
[320735627,1711539142441,-8381.34,0.00059452,120]
[320735628,1711539142451,-2273.07,0.00059452,120]
[320735629,1711539142460,-4086.57,0.00059452,120]
[320735630,1711539142469,-2370.47,0.00059452,120]
[320735631,1711539142479,-19292.32,0.00059452,120]
[320735632,1711539142489,-2960.24,0.00059452,120]
[320735633,1711539142503,-1173.99,0.00059452,120]
[320735634,1711539142513,-440.25162887,0.00059452,85]
[320735635,1711539142522,-2202.57,0.00059452,120]
[320735636,1711539142533,-12410.62,0.00059452,120]
[320735637,1711539142543,-3278.85,0.00059452,120]
[320735638,1711539142553,-3354.16,0.00059452,120]
[320735639,1711539142563,-8798.58,0.00059452,120]
[320735640,1711539142572,-876.94,0.00059452,120]
[320735641,1711539142583,-3583.19,0.00059452,120]
[320735642,1711539142593,-895.2,0.00059452,120]
[320735643,1711539142604,-1845.88,0.00059452,120]
[320735644,1711539142614,-937.27,0.00059452,120]
[320735645,1711539142623,-1083.78,0.00059452,120]
[320735646,1711539142633,-3201.11,0.00059452,120]
[320735647,1711539142642,-2638.24,0.00059452,120]
[320735648,1711539142652,-1388.52,0.00059452,120]
[320735649,1711539142661,-4892.27,0.00059452,120]
[320735650,1711539142671,-2480.34,0.00059452,120]
[320735651,1711539142680,-1350.19,0.00059452,120]
[320735652,1711539142690,-3142.36,0.00059452,120]
[320735653,1711539142699,-2180.01,0.00059452,120]
[320735654,1711539142710,-1470.53,0.00059452,120]
[320735655,1711539142719,-500.0,0.00059452,120]
[320735656,1711539142729,-505.71,0.00059452,120]
[320735657,1711539142740,-1659.22,0.00059452,120]
[320735658,1711539142753,-8083.93,0.00059452,120]
[320735659,1711539142763,-2931.63,0.00059452,120]
[320735660,1711539142773,-2901.36,0.00059452,120]
[320735661,1711539142783,-4166.77,0.00059452,120]
[320735662,1711539142793,-3516.57,0.00059452,120]
[320735663,1711539142803,-541.86,0.00059452,120]
[320735664,1711539142813,-10990.32,0.00059452,120]
[320735665,1711539142823,-1139.26,0.00059452,120]
[320735666,1711539142834,-686.73,0.00059452,120]
[320735667,1711539142845,-1716.32,0.00059452,120]
[320735668,1711539142855,-500.0,0.00059452,120]
[320735669,1711539142866,-157.032717,0.00059498,117]
[320735670,1711539142875,-636.50981946,0.00059498,120]
[320735671,1711539142885,-250.0,0.000595,120]
[320735672,1711539142895,-224.0,0.00059509,30]
[320735673,1711539142905,-1176.0,0.00059524,120]
[320735674,1711539142915,-160.07183501,0.00059609,120]
[320735675,1711539142924,-156.14444312,0.00059628,120]
[320735676,1711539142934,-9100.250636,0.00059656,30]
[320735677,1711539142944,-14879.248352,0.00059656,30]
[320735678,1711539142953,-500.0,0.00059676,90]
[320735679,1711539142963,-500.0,0.00059676,90]
[320735680,1711539142973,-500.0,0.00059676,90]
[320735681,1711539142983,-215045.24,0.0005969,30]
[320735682,1711539142994,-636.50981946,0.00059699,120]
[320735683,1711539143004,-1000.0,0.000597,120]
[320735684,1711539143013,-1000.0,0.000597,120]
[320735685,1711539143022,-155.71,0.000597,9]
[320735686,1711539143033,-155.71,0.000597,9]
[320735687,1711539143042,-155.71,0.000597,9]
[320735688,1711539143053,-1006.68,0.000597,2]
[320735689,1711539143062,-305.062818,0.000597,2]
[320735690,1711539143071,-895.23,0.00059726,120]
[320735691,1711539143081,-575.28,0.00059726,120]
[320735692,1711539143091,-593.33484504,0.00059726,120]
[320735693,1711539143100,-236.47415415,0.00059726,120]
[320735694,1711539143110,-563.96,0.00059726,120]
[320735695,1711539143120,-402.784498,0.00059726,120]
[320735696,1711539143129,-500.0,0.00059726,120]
[320735697,1711539143139,-500.0,0.00059726,120]
[320735698,1711539143149,-976.2,0.00059726,120]
[320735699,1711539143159,-500.0,0.00059726,120]
[320735700,1711539143170,-531.34,0.00059726,120]
[320735701,1711539143182,-500.0,0.00059726,120]
[320735702,1711539143192,-575.24,0.00059726,120]
[320735703,1711539143203,-503.38,0.00059726,120]
[320735704,1711539143215,-500.0,0.00059726,120]
[320735705,1711539143224,-544.36,0.00059726,120]
[320735706,1711539143234,-656.62,0.00059726,120]
[320735707,1711539143245,-786.05,0.00059726,120]
[320735708,1711539143256,-1108.32,0.00059726,120]
[320735709,1711539143269,-500.0,0.00059726,120]
[320735710,1711539143279,-582.28,0.00059726,120]
[320735711,1711539143290,-500.0,0.00059726,120]
[320735712,1711539143301,-500.0,0.00059726,120]
[320735713,1711539143310,-500.0,0.00059726,120]
[320735714,1711539143320,-460.06,0.00059726,120]
[320735715,1711539143330,-500.0,0.00059726,120]
[320735716,1711539143342,-500.0,0.00059726,120]
[320735717,1711539143352,-650.65,0.00059726,120]
[320735718,1711539143362,-666.49,0.00059726,120]
[320735719,1711539143372,-512.61,0.00059726,120]
[320735720,1711539143382,-405.23843386,0.00059726,120]
[320735721,1711539143393,-500.0,0.00059726,120]
[320735722,1711539143403,-610.66,0.00059726,120]
[320735723,1711539143412,-544.48,0.00059726,120]
[320735724,1711539143422,-500.0,0.00059726,120]
[320735725,1711539143432,-1264.52,0.00059726,120]
[320735726,1711539143441,-617.82,0.00059726,120]
[320735727,1711539143454,-564.14,0.00059726,120]
[320735728,1711539143465,-832.09,0.00059726,120]
[320735729,1711539143475,-921.37,0.00059726,120]
[320735730,1711539143485,-695.47,0.00059726,120]
[320735731,1711539143496,-1458.74,0.00059726,120]
[320735732,1711539143506,-597.38,0.00059726,120]
[320735733,1711539143516,-1146.87,0.00059726,120]
[320735734,1711539143526,-2719.96,0.00059726,120]
[320735735,1711539143536,-500.0,0.00059726,120]
[320735736,1711539143546,-1170.95,0.00059726,120]
[320735737,1711539143556,-1986.6,0.00059726,120]
[320735738,1711539143566,-884.38,0.00059726,120]
[320735739,1711539143576,-1057.95,0.00059726,120]
[320735740,1711539143585,-616.91,0.00059726,120]
[320735741,1711539143595,-533.04,0.00059726,120]
[320735742,1711539143605,-702.45,0.00059726,120]
[320735743,1711539143616,-537.22,0.00059726,120]
[320735744,1711539143626,-5471.51,0.00059726,120]
[320735745,1711539143636,-587.11,0.00059726,120]
[320735746,1711539143646,-500.0,0.00059726,120]
[320735747,1711539143656,-2128.3,0.00059726,120]
[320735748,1711539143667,-500.0,0.00059726,120]
[320735749,1711539143677,-961.96,0.00059726,120]
[320735750,1711539143688,-792.02,0.00059726,120]
[320735751,1711539143700,-613.31,0.00059726,120]
[320735752,1711539143710,-1258.8,0.00059726,120]
[320735753,1711539143720,-931.2,0.00059726,120]
[320735754,1711539143729,-663.5,0.00059726,120]
[320735755,1711539143739,-500.0,0.00059726,120]
[320735756,1711539143749,-1126.29,0.00059726,120]
[320735757,1711539143759,-905.93,0.00059726,120]
[320735758,1711539143768,-596.37,0.00059726,120]
[320735759,1711539143778,-1145.15,0.00059726,120]
[320735760,1711539143787,-1047.43,0.00059726,120]
[320735761,1711539143798,-1079.19,0.00059726,120]
[320735762,1711539143808,-500.0,0.00059726,120]
[320735763,1711539143818,-1050.1,0.00059726,120]
[320735764,1711539143829,-668.88,0.00059726,120]
[320735765,1711539143838,-798.22,0.00059726,120]
[320735766,1711539143849,-865.88,0.00059726,120]
[320735767,1711539143859,-500.0,0.00059726,120]
[320735768,1711539144094,-698.77,0.00059726,120]
[320735769,1711539144104,-805.48,0.00059726,120]
[320735770,1711539144113,-895.29,0.00059726,120]
[320735771,1711539144122,-2904.63,0.00059726,120]
[320735772,1711539144131,-575.0,0.00059726,120]
[320735773,1711539144141,-1059.6,0.00059726,120]
[320735774,1711539144150,-624.76,0.00059726,120]
[320735775,1711539144159,-566.16,0.00059726,120]
[320735776,1711539144169,-596.27,0.00059726,120]
[320735777,1711539144178,-511.44,0.00059726,120]
[320735778,1711539144187,-670.39,0.00059726,120]
[320735779,1711539144197,-2461.83,0.00059726,120]
[320735780,1711539144206,-500.0,0.00059726,120]
[320735781,1711539144216,-1096.84,0.00059726,120]
[320735782,1711539144225,-730.57,0.00059726,120]
[320735783,1711539144235,-526.24,0.00059726,120]
[320735784,1711539144245,-813.47,0.00059726,120]
[320735785,1711539144255,-982.22,0.00059726,120]
[320735786,1711539144266,-632.61760003,0.00059726,120]
[320735787,1711539144279,-2323.15,0.00059726,120]
[320735788,1711539144290,-952.22,0.00059726,120]
[320735789,1711539144299,-1090.65,0.00059726,120]
[320735790,1711539144309,-2118.58,0.00059726,120]
[320735791,1711539144321,-819.74,0.00059726,120]
[320735792,1711539144331,-500.0,0.00059726,120]
[320735793,1711539144341,-1006.99,0.00059726,120]
[320735794,1711539144351,-680.58,0.00059726,120]
[320735795,1711539144362,-500.0,0.00059726,120]
[320735796,1711539144372,-2012.56,0.00059726,120]
[320735797,1711539144382,-525.09,0.00059726,120]
[320735798,1711539144392,-1027.05,0.00059726,120]
[320735799,1711539144402,-775.63,0.00059726,120]
[320735800,1711539144412,-909.15,0.00059726,120]
[320735801,1711539144423,-669.48,0.00059726,120]
[320735802,1711539144433,-2014.61,0.00059726,120]
[320735803,1711539144444,-613.39,0.00059726,30]
[320735804,1711539144456,-670.15,0.00059726,120]
[320735805,1711539144466,-613.0,0.00059726,120]
[320735806,1711539144477,-500.0,0.00059726,120]
[320735807,1711539144487,-741.01,0.00059726,120]
[320735808,1711539144499,-715.82,0.00059726,120]
[320735809,1711539144509,-693.91,0.00059726,120]
[320735810,1711539144520,-1436.63,0.00059726,120]
[320735811,1711539144530,-788.63,0.00059726,120]
[320735812,1711539144541,-852.33,0.00059726,120]
[320735813,1711539144552,-183.13,0.00059726,120]
[320735814,1711539144564,-608.04,0.00059726,120]
[320735815,1711539144574,-500.0,0.00059726,120]
[320735816,1711539144584,-632.68,0.00059726,120]
[320735817,1711539144594,-500.0,0.00059726,120]
[320735818,1711539144604,-524.62,0.00059726,120]
[320735819,1711539144615,-620.43,0.00059726,120]
[320735820,1711539144626,-818.9,0.00059726,120]
[320735821,1711539144636,-2063.63,0.00059726,120]
[320735822,1711539144647,-1004.28,0.00059726,120]
[320735823,1711539144657,-2011.71,0.00059726,120]
[320735824,1711539144668,-807.51,0.00059726,120]
[320735825,1711539144678,-763.33,0.00059726,120]
[320735826,1711539144688,-755.18,0.00059726,120]
[320735827,1711539144698,-487.81,0.00059726,120]
[320735828,1711539144709,-842.7,0.00059726,120]
[320735829,1711539144719,-713.05,0.00059726,120]
[320735830,1711539144728,-2308.15,0.00059726,120]
[320735831,1711539144738,-500.0,0.00059726,120]
[320735832,1711539144748,-676.12,0.00059726,120]
[320735833,1711539144757,-849.59,0.00059726,120]
[320735834,1711539144767,-677.22,0.00059726,120]
[320735835,1711539144777,-800.48,0.00059726,120]
[320735836,1711539144787,-988.02,0.00059726,120]
[320735837,1711539144796,-535.04,0.00059726,120]
[320735838,1711539144807,-930.48,0.00059726,120]
[320735839,1711539144816,-877.53,0.00059726,120]
[320735840,1711539144826,-2082.72,0.00059726,120]
[320735841,1711539144835,-520.53,0.00059726,120]
[320735842,1711539144845,-1016.45,0.00059726,120]
[320735843,1711539144854,-525.83,0.00059726,120]
[320735844,1711539144863,-1436.62,0.00059726,120]
[320735845,1711539144872,-2558.6,0.00059726,120]
[320735846,1711539144882,-2044.63,0.00059726,120]
[320735847,1711539144892,-545.88,0.00059726,120]
[320735848,1711539144901,-783.0,0.00059726,120]
[320735849,1711539144911,-3085.25,0.00059726,120]
[320735850,1711539144921,-839.83,0.00059726,120]
[320735851,1711539144931,-735.26,0.00059726,120]
[320735852,1711539144941,-3173.89,0.00059726,120]
[320735853,1711539144950,-1365.01,0.00059726,120]
[320735854,1711539144960,-1347.96,0.00059726,120]
[320735855,1711539144970,-500.0,0.00059726,120]
[320735856,1711539144979,-5132.44,0.00059726,120]
[320735857,1711539144989,-558.52,0.00059726,120]
[320735858,1711539145001,-7133.78,0.00059726,120]
[320735859,1711539145011,-579.76,0.00059726,120]
[320735860,1711539145020,-1944.43,0.00059726,120]
[320735861,1711539145030,-500.0,0.00059726,120]
[320735862,1711539145040,-6097.44,0.00059726,120]
[320735863,1711539145049,-5109.09,0.00059726,120]
[320735864,1711539145059,-545.62,0.00059726,120]
[320735865,1711539145069,-663.4,0.00059726,120]
[320735866,1711539145078,-22670.34,0.00059726,120]
[320735867,1711539145088,-2453.89,0.00059726,120]
[320735868,1711539145097,-2612.82,0.00059726,120]
[320735869,1711539145106,-1096.81,0.00059726,120]
[320735870,1711539145115,-7956.37,0.00059726,120]
[320735871,1711539145125,-2520.37,0.00059726,120]
[320735872,1711539145134,-628.48,0.00059726,120]
[320735873,1711539145144,-1032.54,0.00059726,120]
[320735874,1711539145153,-500.0,0.00059726,120]
[320735875,1711539145163,-2884.81,0.00059726,120]
[320735876,1711539145172,-3753.0,0.00059726,120]
[320735877,1711539145182,-5025.57,0.00059726,120]
[320735878,1711539145192,-43977.12,0.00059726,120]
[320735879,1711539145201,-9397.34,0.00059726,120]
[320735880,1711539145211,-7954.08,0.00059726,120]
[320735881,1711539145220,-597.98437518,0.00059726,120]
[320735882,1711539145230,-832.53,0.00059726,120]
[320735883,1711539145239,-5423.8,0.00059726,120]
[320735884,1711539145250,-5589.81,0.00059726,120]
[320735885,1711539145260,-3477.52,0.00059726,120]
[320735886,1711539145274,-500.0,0.00059726,120]
[320735887,1711539145283,-3295.4,0.00059726,120]
[320735888,1711539145293,-500.0,0.00059726,120]
[320735889,1711539145302,-79143.13,0.00059726,120]
[320735890,1711539145313,-4233.1,0.00059726,120]
[320735891,1711539145324,-1554.43,0.00059726,120]
[320735892,1711539145335,-21230.92,0.00059726,120]
[320735893,1711539145346,-1796.45,0.00059726,120]
[320735894,1711539145356,-1488.59,0.00059726,120]
[320735895,1711539145366,-1590.82,0.00059726,120]
[320735896,1711539145376,-4270.02,0.00059726,120]
[320735897,1711539145385,-1416.51,0.00059726,120]
[320735898,1711539145395,-1436.29,0.00059726,120]
[320735899,1711539145405,-2733.23,0.00059726,120]
[320735900,1711539145414,-4828.26,0.00059726,120]
[320735901,1711539145423,-2699.02,0.00059726,120]
[320735902,1711539145433,-794.6,0.00059726,120]
[320735903,1711539145443,-4103.23,0.00059726,120]
[320735904,1711539145453,-2649.26,0.00059726,120]
[320735905,1711539145464,-3406.52,0.00059726,120]
[320735906,1711539145474,-1067.47,0.00059726,120]
[320735907,1711539145485,-500.0,0.00059726,120]
[320735908,1711539145495,-1008.05,0.00059726,120]
[320735909,1711539145504,-532.43,0.00059726,120]
[320735910,1711539145514,-3326.63,0.00059726,120]
[320735911,1711539145524,-949.03,0.00059726,120]
[320735912,1711539145534,-13832.31,0.00059726,120]
[320735913,1711539145544,-5725.46,0.00059726,120]
[320735914,1711539145554,-1080.08,0.00059726,120]
[320735915,1711539145564,-638.55,0.00059726,120]
[320735916,1711539145574,-532.1,0.00059726,120]
[320735917,1711539145583,-3178.59,0.00059726,120]
[320735918,1711539145593,-868.21,0.00059726,120]
[320735919,1711539145602,-1914.32,0.00059726,120]
[320735920,1711539145612,-5718.22,0.00059726,120]
[320735921,1711539145621,-1510.54,0.00059726,120]
[320735922,1711539145630,-6090.95,0.00059726,120]
[320735923,1711539145640,-2368.29,0.00059726,120]
[320735924,1711539145650,-1975.68,0.00059726,120]
[320735925,1711539145659,-2626.24,0.00059726,120]
[320735926,1711539145669,-826.27,0.00059726,120]
[320735927,1711539145678,-5971.8,0.00059726,120]
[320735928,1711539145687,-6306.66,0.00059726,120]
[320735929,1711539145697,-3796.34,0.00059726,120]
[320735930,1711539145707,-3897.67,0.00059726,120]
[320735931,1711539145717,-2196.71,0.00059726,120]
[320735932,1711539145726,-500.0,0.00059726,7]
[320735933,1711539145736,-1053.73,0.00059726,120]
[320735934,1711539145746,-2509.66,0.00059726,120]
[320735935,1711539145756,-500.0,0.00059726,120]
[320735936,1711539145766,-2090.88,0.00059726,120]
[320735937,1711539145775,-3728.83,0.00059726,120]
[320735938,1711539145784,-14051.88,0.00059726,120]
[320735939,1711539145793,-5336.71,0.00059726,120]
[320735940,1711539145805,-6046.1,0.00059726,120]
[320735941,1711539145815,-1400.16,0.00059726,120]
[320735942,1711539145826,-6749.09,0.00059726,120]
[320735943,1711539145838,-1020.49,0.00059726,120]
[320735944,1711539145847,-3525.02,0.00059726,120]
[320735945,1711539145859,-9670.8,0.00059726,120]
[320735946,1711539145868,-2244.9,0.00059726,120]
[320735947,1711539145879,-4278.93,0.00059726,120]
[320735948,1711539145889,-500.0,0.00059726,120]
[320735949,1711539145898,-5002.55,0.00059726,120]
[320735950,1711539145907,-1319.68,0.00059726,120]
[320735951,1711539145916,-5599.22,0.00059726,120]
[320735952,1711539145927,-4145.52,0.00059726,120]
[320735953,1711539145936,-1033.96,0.00059726,120]
[320735954,1711539145946,-8690.1,0.00059726,120]
[320735955,1711539145956,-759.99,0.00059726,120]
[320735956,1711539145965,-938.28,0.00059726,120]
[320735957,1711539145976,-3689.75,0.00059726,120]
[320735958,1711539145986,-3289.32,0.00059726,120]
[320735959,1711539145996,-8474.88,0.00059726,120]
[320735960,1711539146006,-773.1,0.00059726,120]
[320735961,1711539146016,-670.41,0.00059726,120]
[320735962,1711539146026,-684.84,0.00059726,120]
[320735963,1711539146035,-991.15,0.00059726,120]
[320735964,1711539146045,-16950.66,0.00059726,120]
[320735965,1711539146055,-5480.38,0.00059726,120]
[320735966,1711539146064,-3421.26,0.00059726,120]
[320735967,1711539146074,-649.49,0.00059726,120]
[320735968,1711539146083,-1159.66,0.00059726,120]
[320735969,1711539146092,-2172.19,0.00059726,120]
[320735970,1711539146102,-2895.84,0.00059726,120]
[320735971,1711539146112,-20784.38,0.00059726,120]
[320735972,1711539146121,-2732.75,0.00059726,120]
[320735973,1711539146130,-4082.57686936,0.00059726,120]
[320735974,1711539146506,-13077.90313064,0.00059726,120]
[320735975,1711539146516,-4740.83,0.00059726,120]
[320735976,1711539146526,-886.33,0.00059726,120]
[320735977,1711539146536,-672.63,0.00059726,120]
[320735978,1711539146546,-6247.3,0.00059726,120]
[320735979,1711539146555,-5091.09,0.00059726,21]
[320735980,1711539146565,-584.47,0.00059726,120]
[320735981,1711539146574,-8381.34,0.00059726,120]
[320735982,1711539146584,-2273.07,0.00059726,120]
[320735983,1711539146595,-4086.57,0.00059726,120]
[320735984,1711539146604,-2370.47,0.00059726,120]
[320735985,1711539146614,-19292.32,0.00059726,120]
[320735986,1711539146624,-2960.24,0.00059726,120]
[320735987,1711539146633,-1173.99,0.00059726,120]
[320735988,1711539146642,-2202.57,0.00059726,120]
[320735989,1711539146652,-12410.62,0.00059726,120]
[320735990,1711539146661,-3278.85,0.00059726,120]
[320735991,1711539146670,-8798.58,0.00059726,120]
[320735992,1711539146680,-876.94,0.00059726,120]
[320735993,1711539146690,-3583.19,0.00059726,120]
[320735994,1711539146701,-895.2,0.00059726,120]
[320735995,1711539146717,-1845.88,0.00059726,120]
[320735996,1711539146732,-937.27,0.00059726,120]
[320735997,1711539146743,-1083.78,0.00059726,120]
[320735998,1711539146757,-3201.11,0.00059726,120]
[320735999,1711539146772,-2638.24,0.00059726,120]
[320736000,1711539146789,-1388.52,0.00059726,120]
[320736001,1711539146818,-4892.27,0.00059726,120]
[320736002,1711539146836,-2480.34,0.00059726,120]
[320736003,1711539146851,-1350.19,0.00059726,120]
[320736004,1711539146868,-3142.36,0.00059726,120]
[320736005,1711539146884,-2180.01,0.00059726,120]
[320736006,1711539146899,-1470.53,0.00059726,120]
[320736007,1711539146917,-500.0,0.00059726,120]
[320736008,1711539146930,-505.71,0.00059726,120]
[320736009,1711539146947,-1659.22,0.00059726,120]
[320736010,1711539146963,-8083.93,0.00059726,120]
[320736011,1711539146981,-2931.63,0.00059726,120]
[320736012,1711539146997,-2901.36,0.00059726,120]
[320736013,1711539147010,-4166.77,0.00059726,120]
[320736014,1711539147024,-3516.57,0.00059726,120]
[320736015,1711539147041,-541.86,0.00059726,120]
[320736016,1711539147057,-10990.32,0.00059726,120]
[320736017,1711539147073,-1139.26,0.00059726,120]
[320736018,1711539147085,-686.73,0.00059726,120]
[320736019,1711539147096,-1716.32,0.00059726,120]
[320736020,1711539147109,-500.0,0.00059726,120]
[320736021,1711539147123,-166.56049652,0.00059726,120]
[320736022,1711539147136,-190.24451948,0.00059746,120]
[320736023,1711539147152,-157.032717,0.00059798,114]
[320736024,1711539147164,-1000.0,0.000598,120]
[320736025,1711539147175,-1107.90831877,0.00059836,120]
[320736026,1711539147191,-282.33678653,0.00059836,120]
[320736027,1711539147207,-303.12040052,0.00059836,120]
[320736028,1711539147224,-150.0,0.00059899,120]
[320736029,1711539147237,-150.0,0.00059899,120]
[320736030,1711539147253,-150.11836779,0.00059899,120]
[320736031,1711539147270,-150.0,0.00059899,120]
[320736032,1711539147284,-150.1348774,0.00059899,120]
[320736033,1711539147298,-150.0,0.00059899,120]
[320736034,1711539147312,-150.14229836,0.00059899,120]
[320736035,1711539147325,-150.0,0.00059899,120]
[320736036,1711539147339,-12015.88066317,0.00059899,15]
[320736037,1711539147353,-1867.10260307,0.00059899,15]
[320736038,1711539147366,-4557.78792127,0.00059899,15]
[320736039,1711539147379,-38232.19424494,0.00059899,15]
[320736040,1711539147391,-4828.52960645,0.00059899,15]
[320736041,1711539147404,-7504.13739552,0.00059899,15]
[320736042,1711539147416,-500.0,0.0005995,90]
[320736043,1711539147429,-190.24451948,0.00059955,120]
[320736044,1711539147441,-500.0,0.00059972,62]
[320736045,1711539147454,-500.0,0.00059972,62]
[320736046,1711539147467,-500.0,0.00059972,62]
[320736047,1711539147480,-500.0,0.00059972,62]
[320736048,1711539147494,-500.0,0.00059972,62]
[320736049,1711539147506,-501.96803672,0.00059972,72]
[320736050,1711539147516,-150.0,0.0005998,120]
[320736051,1711539147526,-160.78081923,0.00059988,4]
[320736052,1711539147536,-895.23,0.00059999,120]
[320736053,1711539147545,-575.28,0.00059999,120]
[320736054,1711539147555,-563.96,0.00059999,120]
[320736055,1711539147564,-500.0,0.00059999,120]
[320736056,1711539147574,-500.0,0.00059999,120]
[320736057,1711539147583,-976.2,0.00059999,120]
[320736058,1711539147592,-500.0,0.00059999,120]
[320736059,1711539147602,-531.34,0.00059999,120]
[320736060,1711539147611,-500.0,0.00059999,120]
[320736061,1711539147621,-575.24,0.00059999,120]
[320736062,1711539147630,-503.38,0.00059999,120]
[320736063,1711539147640,-500.0,0.00059999,120]
[320736064,1711539147649,-544.36,0.00059999,120]
[320736065,1711539147658,-656.62,0.00059999,120]
[320736066,1711539147668,-786.05,0.00059999,120]
[320736067,1711539147677,-1108.32,0.00059999,120]
[320736068,1711539147687,-500.0,0.00059999,120]
[320736069,1711539147696,-582.28,0.00059999,120]
[320736070,1711539147706,-297.75086867,0.00059999,120]
[320736071,1711539147715,-500.0,0.00059999,120]
[320736072,1711539147726,-500.0,0.00059999,120]
[320736073,1711539147735,-572.49424021,0.00059999,120]
[320736074,1711539147745,-500.0,0.00059999,120]
[320736075,1711539147757,-650.65,0.00059999,120]
[320736076,1711539147767,-666.49,0.00059999,120]
[320736077,1711539147777,-512.61,0.00059999,120]
[320736078,1711539147786,-500.0,0.00059999,120]
[320736079,1711539147796,-610.66,0.00059999,120]
[320736080,1711539147806,-544.48,0.00059999,120]
[320736081,1711539147815,-500.0,0.00059999,120]
[320736082,1711539147825,-1264.52,0.00059999,120]
[320736083,1711539147834,-564.14,0.00059999,120]
[320736084,1711539147843,-617.82,0.00059999,120]
[320736085,1711539147852,-832.09,0.00059999,120]
[320736086,1711539147861,-921.37,0.00059999,120]